fUST/lending_fUST_20250820
["ID","MTS","AMOUNT","RATE_DAILY","PERIOD"]
[380231113,1755619842996,-6465.39,0.00019452,2]
[380231115,1755619843006,-480.0,0.00019452,2]
[380231117,1755619843015,-480.0,0.00019452,2]
[380231119,1755619843025,-480.0,0.00019452,2]
[380231121,1755619843035,-480.0,0.00019452,2]
[380231123,1755619843045,-834.75,0.00019452,2]
[380231125,1755619843054,-480.0,0.00019452,2]
[380231127,1755619843064,-480.0,0.00019452,2]
[380231130,1755619843075,-480.0,0.00019452,2]
[380231132,1755619843085,-480.0,0.00019452,2]
[380231134,1755619843095,-480.0,0.00019452,2]
[380231136,1755619843104,-480.0,0.00019452,2]
[380231138,1755619843114,-591.75,0.00019452,2]
[380231140,1755619843125,-480.0,0.00019452,2]
[380231142,1755619843135,-480.0,0.00019452,2]
[380231144,1755619843145,-440.0,0.00019452,2]
[380231146,1755619843158,-3935.01,0.00019452,2]
[380231148,1755619843175,-460.0,0.00019452,2]
[380231150,1755619843187,-480.0,0.00019452,2]
[380231152,1755619843196,-480.0,0.00019452,2]
[380231154,1755619843206,-480.0,0.00019452,2]
[380231156,1755619843216,-480.0,0.00019452,2]
[380231158,1755619843226,-480.0,0.00019452,2]
[380231160,1755619843236,-350.0,0.00019452,2]
[380231162,1755619843245,-480.0,0.00019452,2]
[380231164,1755619843255,-480.0,0.00019452,2]
[380231166,1755619843266,-480.0,0.00019452,2]
[380231168,1755619843275,-480.0,0.00019452,2]
[380231170,1755619843284,-480.0,0.00019452,2]
[380231172,1755619843296,-440.0,0.00019452,2]
[380231174,1755619843306,-480.0,0.00019452,2]
[380231176,1755619843315,-480.0,0.00019452,2]
[380231178,1755619843325,-460.79770301,0.00019452,2]
[380231179,1755619843334,-480.0,0.00019452,2]
[380231180,1755619843344,-480.0,0.00019452,2]
[380231181,1755619843353,-480.0,0.00019452,2]
[380231182,1755619843363,-480.0,0.00019452,2]
[380231183,1755619843372,-480.0,0.00019452,2]
[380231184,1755619843382,-480.0,0.00019452,2]
[380231185,1755619843391,-400.0,0.00019452,2]
[380231186,1755619843401,-341.51581681,0.00019452,2]
[380231187,1755619843410,-480.0,0.00019452,2]
[380231188,1755619843419,-612.50321559,0.00019452,2]
[380231189,1755619843429,-480.0,0.00019452,2]
[380231190,1755619843438,-480.0,0.00019452,2]
[380231191,1755619843448,-480.0,0.00019452,2]
[380231192,1755619843457,-480.0,0.00019452,2]
[380231193,1755619843466,-480.0,0.00019452,2]
[380231194,1755619843475,-480.0,0.00019452,2]
[380231195,1755619843485,-377.19359261,0.00019452,2]
[380231196,1755619843494,-480.0,0.00019452,2]
[380231197,1755619843503,-992.24,0.00019452,2]
[380231198,1755619843513,-480.0,0.00019452,2]
[380231199,1755619843522,-480.0,0.00019452,2]
[380231200,1755619843531,-480.0,0.00019452,2]
[380231201,1755619843541,-480.0,0.00019452,2]
[380231202,1755619843550,-480.0,0.00019452,2]
[380231203,1755619843560,-982.43,0.00019452,2]
[380231204,1755619843570,-480.0,0.00019452,2]
[380231205,1755619843579,-520.0,0.00019452,2]
[380231206,1755619843589,-480.0,0.00019452,2]
[380231207,1755619843598,-561.23316046,0.00019452,2]
[380231208,1755619843607,-480.0,0.00019452,2]
[380231209,1755619843616,-883.94,0.00019452,2]
[380231210,1755619843626,-480.0,0.00019452,2]
[380231211,1755619843635,-480.0,0.00019452,2]
[380231212,1755619843644,-480.0,0.00019452,2]
[380231213,1755619843654,-645.17,0.00019452,2]
[380231215,1755619843663,-480.0,0.00019452,2]
[380231217,1755619843673,-480.0,0.00019452,2]
[380231219,1755619843683,-480.0,0.00019452,2]
[380231221,1755619843692,-480.0,0.00019452,2]
[380231222,1755619843703,-480.0,0.00019452,2]
[380231225,1755619843713,-750.87,0.00019452,2]
[380231227,1755619843723,-480.0,0.00019452,2]
[380231229,1755619843732,-480.0,0.00019452,2]
[380231230,1755619843742,-480.0,0.00019452,2]
[380231233,1755619843751,-206.08115851,0.00019452,2]
[380231234,1755619843761,-480.0,0.00019452,2]
[380231236,1755619843770,-480.0,0.00019452,2]
[380231239,1755619843780,-480.0,0.00019452,2]
[380231240,1755619843790,-480.0,0.00019452,2]
[380231242,1755619843799,-480.0,0.00019452,2]
[380231244,1755619843808,-480.0,0.00019452,2]
[380231246,1755619843818,-480.0,0.00019452,2]
[380231248,1755619843828,-480.0,0.00019452,2]
[380231250,1755619843838,-480.0,0.00019452,2]
[380231252,1755619843848,-480.0,0.00019452,2]
[380231254,1755619843857,-1186.63,0.00019452,2]
[380231256,1755619843867,-480.0,0.00019452,2]
[380231258,1755619843879,-480.0,0.00019452,2]
[380231260,1755619843889,-480.0,0.00019452,2]
[380231262,1755619843899,-460.0,0.00019452,2]
[380231264,1755619843908,-579.53817664,0.00019452,2]
[380231266,1755619843917,-480.0,0.00019452,2]
[380231268,1755619843927,-480.0,0.00019452,2]
[380231270,1755619843937,-480.0,0.00019452,2]
[380231272,1755619843946,-480.0,0.00019452,2]
[380231274,1755619843955,-480.0,0.00019452,2]
[380231276,1755619843964,-877.13,0.00019452,2]
[380231278,1755619843973,-1136.39,0.00019452,2]
[380231280,1755619843983,-1521.28,0.00019452,2]
[380231282,1755619843993,-480.0,0.00019452,2]
[380231284,1755619844003,-480.0,0.00019452,2]
[380231286,1755619844012,-480.0,0.00019452,2]
[380231288,1755619844022,-480.0,0.00019452,2]
[380231290,1755619844031,-480.0,0.00019452,2]
[380231292,1755619844041,-742.38,0.00019452,2]
[380231294,1755619844051,-480.0,0.00019452,2]
[380231296,1755619844060,-482.52578215,0.00019452,2]
[380231298,1755619844070,-897.94,0.00019452,2]
[380231300,1755619844080,-480.0,0.00019452,2]
[380231302,1755619844090,-475.96386539,0.00019452,2]
[380231304,1755619844099,-480.0,0.00019452,2]
[380231306,1755619844109,-500.56842257,0.00019452,2]
[380231308,1755619844121,-480.0,0.00019452,2]
[380231310,1755619844131,-480.0,0.00019452,2]
[380231312,1755619844140,-676.43,0.00019452,2]
[380231314,1755619844151,-442.17755315,0.00019452,2]
[380231316,1755619844164,-480.0,0.00019452,2]
[380231318,1755619844173,-480.0,0.00019452,2]
[380231320,1755619844183,-480.0,0.00019452,2]
[380231322,1755619844192,-393.54981042,0.00019452,2]
[380231324,1755619844203,-480.0,0.00019452,2]
[380231326,1755619844212,-500.05,0.00019452,2]
[380231328,1755619844221,-480.0,0.00019452,2]
[380231330,1755619844231,-480.0,0.00019452,2]
[380231332,1755619844241,-480.0,0.00019452,2]
[380231334,1755619844251,-480.0,0.00019452,2]
[380231336,1755619844260,-568.35,0.00019452,2]
[380231338,1755619844270,-480.0,0.00019452,2]
[380231340,1755619844279,-480.0,0.00019452,2]
[380231342,1755619844288,-1040.7,0.00019452,2]
[380231344,1755619844298,-1985.09,0.00019452,2]
[380231346,1755619844307,-480.0,0.00019452,2]
[380231348,1755619844317,-480.0,0.00019452,2]
[380231350,1755619844326,-480.0,0.00019452,2]
[380231352,1755619844336,-480.63,0.00019452,2]
[380231354,1755619844345,-480.0,0.00019452,2]
[380231356,1755619844355,-480.0,0.00019452,2]
[380231358,1755619844364,-400.0,0.00019452,2]
[380231360,1755619844375,-480.0,0.00019452,2]
[380231362,1755619844385,-480.0,0.00019452,2]
[380231364,1755619844394,-480.0,0.00019452,2]
[380231366,1755619844404,-480.0,0.00019452,2]
[380231368,1755619844414,-675.98,0.00019452,2]
[380231370,1755619844424,-420.0,0.00019452,2]
[380231372,1755619844434,-480.0,0.00019452,2]
[380231374,1755619844443,-300.8348439,0.00019452,2]
[380231376,1755619844453,-480.0,0.00019452,2]
[380231378,1755619844463,-480.0,0.00019452,2]
[380231380,1755619844474,-663.13,0.00019452,2]
[380231382,1755619844484,-227.16128546,0.00019452,2]
[380231384,1755619844494,-271.74693007,0.00019452,2]
[380231386,1755619844504,-480.0,0.00019452,2]
[380231388,1755619844513,-1234.63,0.00019452,2]
[380231390,1755619844523,-460.0,0.00019452,2]
[380231392,1755619844533,-480.0,0.00019452,2]
[380231394,1755619844542,-463.13980102,0.00019452,2]
[380231396,1755619844552,-480.0,0.00019452,2]
[380231398,1755619844562,-2692.07,0.00019452,2]
[380231400,1755619844571,-1832.2,0.00019452,2]
[380231401,1755619844581,-480.0,0.00019452,2]
[380231403,1755619844590,-480.0,0.00019452,2]
[380231405,1755619844599,-480.0,0.00019452,2]
[380231407,1755619844609,-480.0,0.00019452,2]
[380231410,1755619844620,-860.46,0.00019452,2]
[380231411,1755619844629,-774.79,0.00019452,2]
[380231414,1755619844639,-463.62420042,0.00019452,2]
[380231416,1755619844649,-480.0,0.00019452,2]
[380231418,1755619844661,-680.76,0.00019452,2]
[380231420,1755619844679,-480.0,0.00019452,2]
[380231422,1755619844690,-480.0,0.00019452,2]
[380231424,1755619844699,-616.87,0.00019452,2]
[380231426,1755619844709,-1049.08,0.00019452,2]
[380231428,1755619844720,-480.0,0.00019452,2]
[380231429,1755619844732,-2129.67,0.00019452,2]
[380231431,1755619844742,-480.0,0.00019452,2]
[380231433,1755619844752,-480.0,0.00019452,2]
[380231435,1755619844761,-480.0,0.00019452,2]
[380231437,1755619844772,-480.0,0.00019452,2]
[380231439,1755619844782,-742.92,0.00019452,2]
[380231441,1755619844792,-480.0,0.00019452,2]
[380231443,1755619844801,-480.0,0.00019452,2]
[380231445,1755619844811,-480.0,0.00019452,2]
[380231447,1755619844821,-480.0,0.00019452,2]
[380231449,1755619844831,-480.0,0.00019452,2]
[380231451,1755619844841,-480.0,0.00019452,2]
[380231453,1755619844851,-480.0,0.00019452,2]
[380231455,1755619844860,-6132.55,0.00019452,2]
[380231457,1755619844870,-480.0,0.00019452,2]
[380231459,1755619844881,-480.0,0.00019452,2]
[380231463,1755619844890,-1980.06,0.00019452,2]
[380231466,1755619844900,-175.97819564,0.00019452,2]
[380231468,1755619844909,-568.37,0.00019452,2]
[380231470,1755619844918,-726.96,0.00019452,2]
[380231472,1755619844928,-480.0,0.00019452,2]
[380231474,1755619844937,-480.0,0.00019452,2]
[380231476,1755619844946,-772.03,0.00019452,2]
[380231478,1755619844955,-480.0,0.00019452,2]
[380231480,1755619844964,-751.5,0.00019452,2]
[380231482,1755619844973,-480.0,0.00019452,2]
[380231484,1755619844982,-480.0,0.00019452,2]
[380231486,1755619844991,-480.0,0.00019452,2]
[380231488,1755619845001,-460.0,0.00019452,2]
[380231490,1755619845010,-480.0,0.00019452,2]
[380231492,1755619845019,-789.94,0.00019452,2]
[380231494,1755619845028,-491.71,0.00019452,2]
[380231496,1755619845037,-480.0,0.00019452,2]
[380231498,1755619845046,-480.0,0.00019452,2]
[380231500,1755619845056,-2530.16,0.00019452,2]
[380231502,1755619845065,-480.0,0.00019452,2]
[380231504,1755619845075,-2942.34,0.00019452,2]
[380231506,1755619845084,-611.92,0.00019452,2]
[380231508,1755619845094,-1067.5,0.00019452,2]
[380231510,1755619845103,-480.0,0.00019452,2]
[380231512,1755619845112,-480.0,0.00019452,2]
[380231514,1755619845123,-480.0,0.00019452,2]
[380231516,1755619845134,-576.84,0.00019452,2]
[380231518,1755619845143,-520.21,0.00019452,2]
[380231520,1755619845152,-910.38,0.00019452,2]
[380231522,1755619845166,-1574.56,0.00019452,2]
[380231524,1755619845175,-480.0,0.00019452,2]
[380231526,1755619845184,-606.56655517,0.00019452,2]
[380231528,1755619845193,-721.25,0.00019452,2]
[380231530,1755619845205,-480.0,0.00019452,2]
[380231532,1755619845215,-1407.36,0.00019452,2]
[380231534,1755619845224,-480.0,0.00019452,2]
[380231536,1755619845234,-510.33,0.00019452,2]
[380231551,1755619845366,-480.0,0.00019452,2]
[380231553,1755619845379,-445.19119939,0.00019452,2]
[380231555,1755619845388,-492.55,0.00019452,2]
[380231558,1755619845397,-480.0,0.00019452,2]
[380231560,1755619845406,-500.0,0.00019452,2]
[380231562,1755619845415,-300.0,0.00019458,20]
[380231564,1755619845425,-300.0,0.00019458,20]
[380231566,1755619845434,-300.0,0.00019458,20]
[380231568,1755619845443,-300.0,0.00019458,20]
[380231570,1755619845453,-300.0,0.00019458,20]
[380231572,1755619845462,-300.0,0.00019458,20]
[380231574,1755619845472,-300.0,0.00019458,20]
[380231576,1755619845481,-300.0,0.00019458,20]
[380231578,1755619845490,-300.0,0.00019458,20]
[380231580,1755619845500,-300.0,0.00019458,20]
[380231582,1755619845509,-300.0,0.00019458,20]
[380231584,1755619845518,-300.0,0.00019458,20]
[380231586,1755619845527,-300.0,0.00019458,20]
[380231588,1755619845537,-300.0,0.00019458,20]
[380231590,1755619845546,-300.0,0.00019458,20]
[380231592,1755619845555,-600.0,0.00019459,20]
[380231594,1755619845565,-286.0,0.00019478,2]
[380231596,1755619845574,-151.0,0.000196,2]
[380231599,1755619845584,-788.73182996,0.0001967,2]
[380231601,1755619845594,-354.0,0.00019699,2]
[380231603,1755619845603,-151.0,0.000197,2]
[380231605,1755619845612,-1000.0,0.00019721,2]
[380231607,1755619845623,-1000.0,0.00019721,2]
[380231609,1755619845633,-694.0,0.00019726,2]
[380231611,1755619845642,-151.0,0.00019726,2]
[380231613,1755619845651,-154.36733466,0.00019726,2]
[380231615,1755619845660,-198.0,0.00019726,2]
[380231617,1755619845670,-213.45675265,0.00019726,2]
[380231619,1755619845679,-151.0,0.00019726,2]
[380231620,1755619845688,-151.0,0.00019726,2]
[380231622,1755619845698,-151.0,0.00019726,2]
[380231625,1755619845708,-296.30669961,0.00019726,2]
[380231627,1755619845717,-151.0,0.00019726,2]
[380231629,1755619845727,-500.0,0.00019726,2]
[380231631,1755619845736,-500.0,0.00019726,2]
[380231633,1755619845745,-500.0,0.00019726,2]
[380231635,1755619845755,-500.0,0.00019726,2]
[380231637,1755619845765,-500.0,0.00019726,2]
[380231639,1755619845775,-500.0,0.00019726,2]
[380231642,1755619845784,-282.75038961,0.00019726,2]
[380231644,1755619845793,-500.0,0.00019726,2]
[380231646,1755619845803,-500.0,0.00019726,2]
[380231648,1755619845812,-500.0,0.00019726,2]
[380231650,1755619845821,-500.0,0.00019726,2]
[380231652,1755619845830,-216.30903859,0.00019726,2]
[380231653,1755619845839,-480.0,0.00019726,2]
[380231655,1755619845849,-480.0,0.00019726,2]
[380231657,1755619845858,-485.85789843,0.00019726,2]
[380231660,1755619845867,-480.0,0.00019726,2]
[380231662,1755619845879,-480.0,0.00019726,2]
[380231664,1755619845888,-460.0,0.00019726,2]
[380231666,1755619845897,-480.0,0.00019726,2]
[380231668,1755619845907,-6465.39,0.00019726,2]
[380231669,1755619845916,-480.0,0.00019726,2]
[380231672,1755619845925,-490.42,0.00019726,2]
[380231673,1755619845935,-520.61,0.00019726,2]
[380231677,1755619845944,-834.75,0.00019726,2]
[380231679,1755619845953,-480.0,0.00019726,2]
[380231681,1755619845962,-480.0,0.00019726,2]
[380231683,1755619845971,-480.0,0.00019726,2]
[380231685,1755619845981,-480.0,0.00019726,2]
[380231687,1755619845990,-480.0,0.00019726,2]
[380231689,1755619846000,-591.75,0.00019726,2]
[380231691,1755619846009,-480.0,0.00019726,2]
[380231693,1755619846019,-480.0,0.00019726,2]
[380231695,1755619846028,-3935.01,0.00019726,2]
[380231697,1755619846038,-480.0,0.00019726,2]
[380231699,1755619846048,-480.0,0.00019726,2]
[380231701,1755619846058,-480.0,0.00019726,2]
[380231703,1755619846067,-480.0,0.00019726,2]
[380231705,1755619846077,-480.0,0.00019726,2]
[380231707,1755619846087,-480.0,0.00019726,2]
[380231709,1755619846096,-480.0,0.00019726,2]
[380231711,1755619846105,-480.0,0.00019726,2]
[380231713,1755619846114,-480.0,0.00019726,2]
[380231715,1755619846125,-366.04539848,0.00019726,2]
[380231717,1755619846135,-480.0,0.00019726,2]
[380231719,1755619846145,-480.0,0.00019726,2]
[380231721,1755619846154,-460.0,0.00019726,2]
[380231723,1755619846168,-525.88,0.00019726,2]
[380231725,1755619846178,-480.0,0.00019726,2]
[380231727,1755619846188,-480.0,0.00019726,2]
[380231729,1755619846197,-480.0,0.00019726,2]
[380231731,1755619846206,-532.20122534,0.00019726,2]
[380231733,1755619846215,-480.0,0.00019726,2]
[380231735,1755619846225,-480.0,0.00019726,2]
[380231737,1755619846236,-992.24,0.00019726,2]
[380231739,1755619846245,-480.0,0.00019726,2]
[380231741,1755619846254,-480.0,0.00019726,2]
[380231743,1755619846264,-482.45527504,0.00019726,2]
[380231745,1755619846273,-350.23072978,0.00019726,2]
[380231747,1755619846283,-480.0,0.00019726,2]
[380231749,1755619846293,-982.43,0.00019726,2]
[380231751,1755619846303,-480.0,0.00019726,2]
[380231753,1755619846313,-463.57777023,0.00019726,2]
[380231755,1755619846323,-480.0,0.00019726,2]
[380231757,1755619846333,-883.94,0.00019726,2]
[380231759,1755619846343,-480.0,0.00019726,2]
[380231761,1755619846353,-480.0,0.00019726,2]
[380231763,1755619846363,-645.17,0.00019726,2]
[380231765,1755619846375,-467.83395752,0.00019726,2]
[380231767,1755619846385,-480.0,0.00019726,2]
[380231769,1755619846395,-480.0,0.00019726,2]
[380231771,1755619846405,-267.9517493,0.00019726,2]
[380231773,1755619846416,-480.0,0.00019726,2]
[380231775,1755619846425,-750.87,0.00019726,2]
[380231777,1755619846435,-480.0,0.00019726,2]
[380231779,1755619846445,-480.0,0.00019726,2]
[380231781,1755619846455,-480.0,0.00019726,2]
[380231783,1755619846464,-480.0,0.00019726,2]
[380231785,1755619846474,-480.0,0.00019726,2]
[380231787,1755619846485,-480.0,0.00019726,2]
[380231789,1755619846495,-390.93956601,0.00019726,2]
[380231791,1755619846507,-563.55264914,0.00019726,2]
[380231793,1755619846517,-480.0,0.00019726,2]
[380231795,1755619846526,-480.0,0.00019726,2]
[380231797,1755619846536,-480.0,0.00019726,2]
[380231799,1755619846545,-319.99548297,0.00019726,2]
[380231801,1755619846555,-1186.63,0.00019726,2]
[380231803,1755619846564,-480.0,0.00019726,2]
[380231805,1755619846573,-480.0,0.00019726,2]
[380231807,1755619846583,-480.0,0.00019726,2]
[380231809,1755619846592,-480.0,0.00019726,2]
[380231811,1755619846601,-480.0,0.00019726,2]
[380231813,1755619846610,-480.0,0.00019726,2]
[380231815,1755619846619,-480.0,0.00019726,2]
[380231817,1755619846631,-480.0,0.00019726,2]
[380231819,1755619846640,-877.13,0.00019726,2]
[380231821,1755619846649,-1136.39,0.00019726,2]
[380231823,1755619846659,-1521.28,0.00019726,2]
[380231826,1755619846668,-460.0,0.00019726,2]
[380231827,1755619846677,-480.0,0.00019726,2]
[380231830,1755619846688,-480.0,0.00019726,2]
[380231832,1755619846697,-480.0,0.00019726,2]
[380231834,1755619846707,-742.38,0.00019726,2]
[380231836,1755619846716,-191.10637339,0.00019726,2]
[380231838,1755619846725,-897.94,0.00019726,2]
[380231840,1755619846734,-480.0,0.00019726,2]
[380231842,1755619846743,-325.50678981,0.00019726,2]
[380231844,1755619846752,-480.0,0.00019726,2]
[380231846,1755619846762,-480.0,0.00019726,2]
[380231848,1755619846771,-676.43,0.00019726,2]
[380231850,1755619846780,-480.0,0.00019726,2]
[380231852,1755619846791,-480.0,0.00019726,2]
[380231854,1755619846800,-480.0,0.00019726,2]
[380231856,1755619846809,-551.40395806,0.00019726,2]
[380231858,1755619846818,-500.05,0.00019726,2]
[380231860,1755619846828,-480.0,0.00019726,2]
[380231862,1755619846838,-480.0,0.00019726,2]
[380231864,1755619846848,-480.0,0.00019726,2]
[380231866,1755619846857,-480.0,0.00019726,2]
[380231868,1755619846867,-568.35,0.00019726,2]
[380231870,1755619846877,-480.0,0.00019726,2]
[380231872,1755619846886,-535.34192878,0.00019726,2]
[380231874,1755619846895,-1040.7,0.00019726,2]
[380231876,1755619846905,-1985.09,0.00019726,2]
[380231878,1755619846914,-480.0,0.00019726,2]
[380231880,1755619846924,-480.0,0.00019726,2]
[380231882,1755619846934,-480.0,0.00019726,2]
[380231884,1755619846943,-480.63,0.00019726,2]
[380231886,1755619846952,-480.0,0.00019726,2]
[380231888,1755619846962,-480.0,0.00019726,2]
[380231890,1755619846971,-480.0,0.00019726,2]
[380231892,1755619846981,-480.0,0.00019726,2]
[380231894,1755619846991,-480.0,0.00019726,2]
[380231896,1755619847000,-675.98,0.00019726,2]
[380231898,1755619847009,-480.0,0.00019726,2]
[380231900,1755619847019,-480.0,0.00019726,2]
[380231902,1755619847028,-480.0,0.00019726,2]
[380231904,1755619847038,-663.13,0.00019726,2]
[380231906,1755619847047,-480.0,0.00019726,2]
[380231908,1755619847057,-1234.63,0.00019726,2]
[380231910,1755619847067,-480.0,0.00019726,2]
[380231912,1755619847077,-480.0,0.00019726,2]
[380231914,1755619847086,-2692.07,0.00019726,2]
[380231916,1755619847096,-1832.2,0.00019726,2]
[380231918,1755619847107,-480.0,0.00019726,2]
[380231920,1755619847116,-480.0,0.00019726,2]
[380231922,1755619847128,-480.0,0.00019726,2]
[380231924,1755619847138,-480.0,0.00019726,2]
[380231926,1755619847148,-860.46,0.00019726,2]
[380231928,1755619847161,-774.79,0.00019726,2]
[380231930,1755619847171,-480.0,0.00019726,2]
[380231932,1755619847180,-680.76,0.00019726,2]
[380231934,1755619847190,-430.14023818,0.00019726,2]
[380231936,1755619847200,-480.0,0.00019726,2]
[380231938,1755619847209,-616.87,0.00019726,2]
[380231940,1755619847218,-1049.08,0.00019726,2]
[380231942,1755619847229,-480.0,0.00019726,2]
[380231944,1755619847240,-2129.67,0.00019726,2]
[380231946,1755619847250,-480.0,0.00019726,2]
[380231948,1755619847260,-480.0,0.00019726,2]
[380231950,1755619847270,-480.0,0.00019726,2]
[380231952,1755619847279,-480.0,0.00019726,2]
[380231954,1755619847289,-742.92,0.00019726,2]
[380231956,1755619847299,-278.86156771,0.00019726,2]
[380231958,1755619847308,-480.0,0.00019726,2]
[380231960,1755619847318,-480.0,0.00019726,2]
[380231962,1755619847328,-480.0,0.00019726,2]
[380231964,1755619847338,-480.0,0.00019726,2]
[380231966,1755619847348,-480.0,0.00019726,2]
[380231968,1755619847358,-480.0,0.00019726,2]
[380231970,1755619847368,-6132.55,0.00019726,2]
[380231972,1755619847382,-480.0,0.00019726,2]
[380231974,1755619847392,-1980.06,0.00019726,2]
[380231976,1755619847402,-568.37,0.00019726,2]
[380231978,1755619847411,-726.96,0.00019726,2]
[380231980,1755619847422,-480.0,0.00019726,2]
[380231982,1755619847432,-480.0,0.00019726,2]
[380231984,1755619847442,-772.03,0.00019726,2]
[380231986,1755619847451,-238.74418226,0.00019726,2]
[380231989,1755619847462,-751.5,0.00019726,2]
[380231991,1755619847472,-480.0,0.00019726,2]
[380231993,1755619847483,-480.0,0.00019726,2]
[380231994,1755619847493,-480.0,0.00019726,2]
[380231997,1755619847503,-480.0,0.00019726,2]
[380231999,1755619847513,-789.94,0.00019726,2]
[380232001,1755619847523,-491.71,0.00019726,2]
[380232003,1755619847739,-480.0,0.00019726,2]
[380232004,1755619847750,-480.0,0.00019726,2]
[380232007,1755619847760,-480.0,0.00019726,2]
[380232009,1755619847769,-2530.16,0.00019726,2]
[380232011,1755619847778,-2942.34,0.00019726,2]
[380232012,1755619847788,-611.92,0.00019726,2]
[380232015,1755619847797,-1067.5,0.00019726,2]
[380232017,1755619847806,-480.0,0.00019726,2]
[380232018,1755619847816,-480.0,0.00019726,2]
[380232020,1755619847825,-480.0,0.00019726,2]
[380232022,1755619847834,-576.84,0.00019726,2]
[380232024,1755619847843,-520.21,0.00019726,2]
[380232026,1755619847853,-910.38,0.00019726,2]
[380232028,1755619847864,-1574.56,0.00019726,2]
[380232029,1755619847877,-480.0,0.00019726,2]
[380232030,1755619847887,-721.25,0.00019726,2]
[380232031,1755619847896,-460.0,0.00019726,2]
[380232032,1755619847906,-1407.36,0.00019726,2]
[380232033,1755619847922,-422.53977297,0.00019726,2]
[380232034,1755619847931,-510.33,0.00019726,2]
[380232035,1755619847940,-480.0,0.00019726,2]
[380232036,1755619847949,-492.55,0.00019726,2]
[380232037,1755619847958,-480.0,0.00019726,2]
[380232038,1755619847968,-500.0,0.00019726,2]
[380232039,1755619847977,-158.66359793,0.00019773,2]
[380232040,1755619847986,-500.0,0.00019773,2]
[380232041,1755619847995,-158.66293295,0.00019773,2]
[380232042,1755619848006,-501.874881,0.00019773,2]
[380232043,1755619848020,-500.0,0.00019773,2]
[380232044,1755619848033,-198.31463455,0.00019773,2]
[380232045,1755619848042,-500.0,0.00019773,2]
[380232046,1755619848051,-500.0,0.00019773,2]
[380232047,1755619848060,-500.0,0.00019773,2]
[380232048,1755619848069,-500.0,0.00019773,2]
[380232049,1755619848079,-500.0,0.00019773,2]
[380232050,1755619848088,-151.0,0.000198,2]
[380232051,1755619848098,-190.0,0.00019808,2]
[380232052,1755619848107,-392.879872,0.00019863,2]
[380232053,1755619848117,-396.32638483,0.00019867,2]
[380232054,1755619848128,-7567.39440105,0.000199,2]
[380232055,1755619848137,-151.0,0.000199,2]
[380232056,1755619848146,-788.73182996,0.000199,2]
[380232057,1755619848156,-221.2,0.0001991,2]
[380232058,1755619848167,-500.0,0.00019973,2]
[380232059,1755619848177,-500.68861223,0.00019973,2]
[380232061,1755619848187,-500.0,0.00019973,2]
[380232063,1755619848197,-500.0,0.00019973,2]
[380232065,1755619848207,-501.71740624,0.00019973,2]